bitfinex/quotes_BTCUSD_20250713
["timestamp","ask_amount","ask_price","bid_price","bid_amount"]
[1752416372071,0.05,119000.0,118990.0,0.30135956]
[1752416372291,0.01228442,119000.0,118990.0,0.30135956]
[1752416372511,0.00390318,119000.0,118990.0,0.30430956]
[1752416372959,0.12522277,119070.0,119000.0,0.01454085]
[1752416373181,0.2106527,119070.0,119010.0,0.08542993]
[1752416373400,0.06721277,119050.0,119020.0,0.17412]
[1752416373669,0.06721277,119050.0,119030.0,0.00210031]
[1752416373899,0.06721277,119050.0,119040.0,0.17412]
[1752416374115,0.07032277,119050.0,119000.0,0.00295]
[1752416374331,0.2106427,119050.0,119010.0,0.08542993]
[1752416374543,0.00311,119040.0,119020.0,0.1742]
[1752416374984,0.06671277,119050.0,119020.0,0.25977871]
[1752416375199,0.06971277,119050.0,119020.0,0.25977871]
[1752416375425,0.0585,119040.0,119020.0,0.00014878]
[1752416375655,0.0287,119060.0,119030.0,0.3482]
[1752416376105,0.0317,119060.0,119040.0,0.00210013]
[1752416376325,0.003,119060.0,119050.0,0.34856]
[1752416377008,0.003,119060.0,119020.0,0.00014878]
[1752416377228,0.0317,119060.0,119030.0,0.25966993]
[1752416377458,0.003,119050.0,119030.0,0.25966993]
[1752416377921,0.0287,119060.0,119030.0,0.25966993]
[1752416378148,0.0317,119060.0,119030.0,0.25966993]
[1752416378370,0.01454085,119080.0,119030.0,0.25966993]
[1752416378592,0.0278,119070.0,119040.0,0.00210013]
[1752416378856,0.028172,119090.0,119040.0,0.00505013]
[1752416379076,0.003,119080.0,119040.0,0.00505013]
[1752416379316,0.003,119080.0,119050.0,0.25970993]
[1752416379530,0.0278,119090.0,119060.0,0.20124]
[1752416379531,0.003,119070.0,119060.0,0.20124]
[1752416379759,0.5512427,119070.0,119060.0,0.37564]
[1752416380002,0.49857078,119070.0,119060.0,0.20124]
[1752416380208,0.01454085,119060.0,119050.0,0.20124]
[1752416380426,0.0556,119050.0,119020.0,0.20124]
[1752416380672,0.0556,119030.0,119020.0,0.20124]
[1752416380892,0.48402993,119030.0,119020.0,0.20138878]
[1752416381114,0.49857078,119030.0,119020.0,0.20138878]
[1752416381371,0.54581272,119030.0,119020.0,0.20138878]
[1752416381593,0.07014085,119010.0,119000.0,0.20124]
[1752416381819,0.49557078,119010.0,119000.0,0.37616]
[1752416382028,0.49557078,119010.0,119000.0,0.20124]
[1752416382029,0.49857078,119010.0,119000.0,0.20124]
[1752416382241,0.49857078,119010.0,119000.0,0.37616]
[1752416383131,0.52062672,119010.0,119000.0,0.37616]
[1752416384050,0.49857078,119010.0,119000.0,0.20124]
[1752416384269,0.49857078,119010.0,119000.0,0.37588]
[1752416385860,0.49857078,119010.0,119000.0,0.20124]
[1752416386079,0.49857078,119010.0,119000.0,0.37564]
[1752416386929,0.47077078,119010.0,119000.0,0.20124]
[1752416387145,0.47077078,119010.0,119000.0,0.37552]
[1752416387356,0.47077078,119010.0,119000.0,0.37544]
[1752416387808,0.34,119010.0,119000.0,0.37544]
[1752416388000,0.343,119010.0,119000.0,0.37544]
[1752416388216,0.483586,119030.0,119000.0,0.37544]
[1752416388437,0.14382993,119030.0,119000.0,0.37544]
[1752416388869,0.01454085,119020.0,119000.0,0.37544]
[1752416390419,0.08542993,119030.0,119000.0,0.37839]
[1752416390628,0.03124005,119050.0,119010.0,0.20128]
[1752416390629,0.003,119050.0,119010.0,0.20128]
[1752416390841,0.02831946,119030.0,119020.0,0.00210048]
[1752416391053,0.02831946,119040.0,119010.0,0.20128]
[1752416391266,0.02831946,119030.0,119020.0,0.00210048]
[1752416391479,0.42842993,119050.0,119020.0,0.00210048]
[1752416391735,0.02831946,119040.0,119030.0,0.43310993]
[1752416391956,0.07831946,119060.0,119030.0,0.43310993]
[1752416392167,0.00049897,119040.0,119030.0,0.43310993]
[1752416392583,0.07831946,119060.0,119030.0,0.43310993]
[1752416392797,0.05014964,119060.0,119040.0,0.08753006]
[1752416393024,0.003,119090.0,119040.0,0.08753006]
[1752416393025,0.02831946,119110.0,119050.0,0.99106993]
[1752416393245,0.06721277,119100.0,119070.0,0.08542993]
[1752416393490,0.02831946,119070.0,119060.0,0.20124]
[1752416393679,0.40051946,119070.0,119060.0,0.37592]
[1752416393902,0.50049024,119070.0,119060.0,0.37592]
[1752416394343,0.35454085,119070.0,119060.0,0.37592]
[1752416394550,0.38586031,119070.0,119060.0,0.37592]
[1752416394971,0.04286031,119070.0,119060.0,0.37592]
[1752416395387,0.02831946,119080.0,119060.0,0.37592]
[1752416395643,0.3692,119100.0,119070.0,0.0020996]
[1752416395849,0.04286031,119080.0,119070.0,0.0020996]
[1752416396117,0.04286031,119080.0,119070.0,0.1769396]
[1752416396317,0.04286031,119080.0,119070.0,0.17484]
[1752416396748,0.04286031,119080.0,119060.0,0.20124]
[1752416397181,0.02831946,119070.0,119060.0,0.20124]
[1752416397398,0.02831946,119070.0,119060.0,0.3758]
[1752416397625,0.02831946,119070.0,119060.0,0.37576]
[1752416398062,0.01454085,119080.0,119060.0,0.37576]
[1752416398289,0.02831946,119080.0,119060.0,0.46118993]
[1752416398501,0.02831946,119090.0,119060.0,0.46118993]
[1752416398710,0.02831946,119080.0,119070.0,0.2012]
[1752416399551,0.02831946,119090.0,119070.0,0.2012]
[1752416399763,0.02831946,119090.0,119080.0,0.17629942]
[1752416399999,0.02831946,119090.0,119080.0,0.25962993]
[1752416400208,0.02831946,119100.0,119080.0,0.25962993]
[1752416400425,0.02831946,119090.0,119070.0,0.2012]
[1752416400655,0.03131946,119080.0,119070.0,0.2012]
[1752416400848,0.12829024,119080.0,119070.0,0.37564]
[1752416401084,0.09997078,119080.0,119070.0,0.37564]
[1752416401311,0.02831946,119080.0,119070.0,0.2012]
[1752416401528,0.02831946,119090.0,119070.0,0.37588]
[1752416401748,0.02831946,119080.0,119070.0,0.2012]
[1752416401963,0.04586031,119080.0,119070.0,0.37588]
[1752416402407,0.19129024,119080.0,119070.0,0.37584]
[1752416402624,0.53129024,119080.0,119070.0,0.2012]
[1752416403314,0.49829024,119080.0,119070.0,0.5502]
[1752416403525,0.063,119120.0,119070.0,0.63562993]
[1752416403732,0.02831946,119110.0,119080.0,0.08752935]
[1752416403968,0.00014969,119130.0,119090.0,0.38199925]
[1752416404176,0.00014969,119130.0,119100.0,0.00209907]
[1752416404390,0.00014969,119130.0,119110.0,0.35048]
[1752416404851,0.00014969,119130.0,119080.0,0.11058393]
[1752416405058,0.02831946,119110.0,119090.0,0.08542993]
[1752416405272,0.02831946,119110.0,119100.0,0.00209907]
[1752416405488,0.01454085,119100.0,119070.0,0.2012]
[1752416405695,0.04585031,119090.0,119080.0,0.17592]
[1752416406118,0.04286031,119090.0,119080.0,0.17592]
[1752416406330,0.02831946,119080.0,119070.0,0.2012]
[1752416406563,0.04585031,119080.0,119070.0,0.2012]
[1752416406769,0.5033809,119080.0,119070.0,0.37724]
[1752416406981,0.53128024,119080.0,119070.0,0.2012]
[1752416407198,0.53128024,119080.0,119070.0,0.37716]
[1752416407611,0.53128024,119080.0,119070.0,0.37712]
[1752416407834,0.53128024,119080.0,119070.0,0.2012]
[1752416408039,0.53128024,119080.0,119070.0,0.37696]
[1752416408871,0.38286031,119080.0,119070.0,0.37696]
[1752416409716,0.02831946,119080.0,119070.0,0.46238993]
[1752416409941,0.02831946,119090.0,119070.0,0.2012]
[1752416410150,0.02831946,119080.0,119070.0,0.37724]
[1752416410355,0.02781946,119080.0,119070.0,0.37724]
[1752416410771,0.02781946,119090.0,119070.0,0.37724]
[1752416411264,0.02731946,119090.0,119070.0,0.2012]
[1752416411470,0.02731946,119080.0,119070.0,0.2012]
[1752416411893,0.02731946,119080.0,119070.0,0.37728]
[1752416413354,0.04186031,119080.0,119070.0,0.2012]
[1752416413569,0.04485031,119080.0,119070.0,0.2012]
[1752416413783,0.13028024,119080.0,119070.0,0.2012]
[1752416413998,0.48343939,119080.0,119070.0,0.2012]
[1752416414215,0.49798024,119080.0,119070.0,0.37712]
[1752416414422,0.49798024,119080.0,119070.0,0.52712]
[1752416414836,0.41255031,119080.0,119070.0,0.52712]
[1752416415070,0.02731946,119080.0,119070.0,0.52712]
[1752416415382,0.02731946,119090.0,119070.0,0.52712]
[1752416415588,0.02731946,119090.0,119080.0,0.00209942]
[1752416415876,0.02746913,119100.0,119080.0,0.00209942]
[1752416416084,0.02746913,119100.0,119080.0,0.08752935]
[1752416416289,0.02746913,119100.0,119070.0,0.15]
[1752416416290,0.02731946,119080.0,119070.0,0.15]
[1752416416494,0.04485031,119080.0,119070.0,0.52744]
[1752416417098,0.04485031,119080.0,119070.0,0.35116]
[1752416417302,0.04186031,119080.0,119070.0,0.52748]
[1752416417514,0.0885696,119100.0,119070.0,0.52748]
[1752416417696,0.02731946,119090.0,119080.0,0.17833942]
[1752416417937,0.02746913,119100.0,119080.0,0.17624]
[1752416418155,0.00014967,119100.0,119090.0,0.08542993]
[1752416418357,0.00014967,119100.0,119090.0,0.08752918]
[1752416418570,0.02746913,119100.0,119070.0,0.35116]
[1752416418767,0.02746913,119100.0,119080.0,0.17652]
[1752416419191,0.03045913,119100.0,119080.0,0.17652]
[1752416419592,0.02731946,119090.0,119070.0,0.35116]
[1752416419777,0.02731946,119090.0,119070.0,0.43658993]
[1752416419995,0.02731946,119090.0,119080.0,0.17648]
[1752416420518,0.02731946,119090.0,119070.0,0.43658993]
[1752416420728,0.05955913,119100.0,119080.0,0.17648]
[1752416420927,0.02731946,119080.0,119070.0,0.43658993]
[1752416421143,0.02731946,119090.0,119070.0,0.61294993]
[1752416421350,0.02731946,119080.0,119070.0,0.43658993]
[1752416421563,0.03030946,119090.0,119070.0,0.43658993]
[1752416422006,0.02731946,119080.0,119070.0,0.43658993]
[1752416422213,0.02731946,119080.0,119070.0,0.61282993]
[1752416422653,0.02731946,119080.0,119070.0,0.15]
[1752416422868,0.44395031,119080.0,119070.0,0.52724]
[1752416423089,0.44395031,119080.0,119070.0,0.5272]
[1752416423314,0.52938024,119080.0,119070.0,0.5273]
[1752416423522,0.52938024,119080.0,119070.0,0.35126]
[1752416423766,0.92938024,119080.0,119070.0,0.34801]
[1752416423980,0.92938024,119080.0,119070.0,0.52405]
[1752416424637,0.52938024,119080.0,119070.0,0.52405]
[1752416425166,0.02731946,119080.0,119070.0,0.34801]
[1752416425388,0.02731946,119090.0,119070.0,0.52389]
[1752416425636,0.02746913,119100.0,119080.0,0.06931219]
[1752416425866,0.00014967,119100.0,119090.0,0.08838993]
[1752416426113,0.02731946,119090.0,119070.0,0.14685]
[1752416426370,0.02731946,119090.0,119080.0,0.20116]
[1752416426799,0.00210066,119110.0,119080.0,0.37097763]
[1752416427034,0.075367,119140.0,119110.0,0.427783]
[1752416427035,0.0002,119140.0,119110.0,0.427783]
[1752416427255,0.34971101,119180.0,119140.0,0.0567]
[1752416427492,0.34188327,119180.0,119150.0,0.28899819]
[1752416427723,0.33349816,119180.0,119160.0,0.00296]
[1752416427947,0.28915025,119180.0,119170.0,0.18112]
[1752416428182,0.28076514,119180.0,119170.0,0.1818]
[1752416428405,0.28076514,119180.0,119170.0,0.00296]
[1752416428627,0.27287912,119180.0,119170.0,0.182]
[1752416428859,0.26449401,119180.0,119170.0,0.182]
[1752416429343,0.2561089,119180.0,119170.0,0.26742993]
[1752416429841,0.24772379,119180.0,119170.0,0.17932]
[1752416430375,0.23933868,119180.0,119170.0,0.26770993]
[1752416430783,0.23095357,119180.0,119170.0,0.08542993]
[1752416431008,0.23095357,119180.0,119170.0,0.26506993]
[1752416431655,0.23095357,119180.0,119170.0,0.17992]
[1752416431879,0.3974,119170.0,119110.0,0.00296]
[1752416432256,0.0299,119140.0,119120.0,0.18004]
[1752416432476,0.00299,119130.0,119120.0,0.18004]
[1752416432699,0.03289,119130.0,119120.0,0.18004]
[1752416432997,0.06269,119130.0,119120.0,0.18024]
[1752416433255,0.16266078,119130.0,119120.0,0.18024]
[1752416433760,0.01454085,119100.0,119080.0,0.06721277]
[1752416434000,0.03289,119090.0,119080.0,0.00014967]
[1752416434233,0.03289,119090.0,119080.0,0.18046967]
[1752416434702,0.16266078,119090.0,119080.0,0.18046967]
[1752416435431,0.16266078,119090.0,119080.0,0.20122967]
[1752416435900,0.12424085,119080.0,119070.0,0.34793]
[1752416436134,0.21278078,119080.0,119070.0,0.52809]
[1752416436642,0.16278078,119080.0,119070.0,0.52809]
[1752416436884,0.04755085,119080.0,119070.0,0.5272512]
[1752416437140,0.04713085,119080.0,119070.0,0.5272512]
[1752416437364,0.40061,119100.0,119070.0,0.5272512]
[1752416437574,0.14618951,119100.0,119080.0,0.00209942]
[1752416437791,0.02784958,119100.0,119090.0,0.3602]
[1752416438021,0.00014958,119100.0,119090.0,0.3602]
[1752416438492,0.00014958,119100.0,119090.0,0.36]
[1752416438716,0.03115958,119100.0,119090.0,0.36]
[1752416438966,0.02804958,119100.0,119090.0,0.36]
[1752416439188,0.00014958,119100.0,119090.0,0.55316879]
[1752416439418,0.03082518,119120.0,119090.0,0.55316879]
[1752416439665,0.0579,119110.0,119100.0,0.36072]
[1752416440131,0.04244085,119100.0,119090.0,0.19316879]
[1752416440359,0.15787078,119100.0,119090.0,0.18032]
[1752416440800,0.15787078,119100.0,119080.0,0.19316879]
[1752416441026,0.49787078,119100.0,119090.0,0.18032]
[1752416441254,0.47308078,119100.0,119080.0,0.19331837]
[1752416441536,0.49787078,119090.0,119080.0,0.00014958]
[1752416441766,0.49787078,119090.0,119080.0,0.20126958]
[1752416441767,0.50098078,119090.0,119080.0,0.20126958]
[1752416442230,0.90098078,119090.0,119080.0,0.20126958]
[1752416442496,0.50098078,119090.0,119080.0,0.38130958]
[1752416443406,0.01454085,119100.0,119080.0,0.38130958]
[1752416443639,0.13378078,119100.0,119080.0,0.38130958]
[1752416443868,0.16298078,119100.0,119080.0,0.38130958]
[1752416444100,0.13378078,119100.0,119080.0,0.38140958]
[1752416444565,0.06301,119090.0,119080.0,0.38140958]
[1752416444814,0.16248078,119090.0,119080.0,0.20136958]
[1752416445036,0.16248078,119090.0,119080.0,0.38116958]
[1752416445439,0.17126111,119090.0,119080.0,0.38116958]
[1752416445702,0.16245106,119090.0,119080.0,0.17972]
[1752416445927,0.07444085,119080.0,119070.0,0.3471312]
[1752416446177,0.49987078,119080.0,119070.0,0.3471312]
[1752416447092,0.0599,119100.0,119070.0,0.5267712]
[1752416447325,0.34,119090.0,119070.0,0.5267712]
[1752416447992,0.06295964,119120.0,119070.0,0.61528113]
[1752416448216,0.11547957,119120.0,119080.0,0.09060935]
[1752416448444,0.00014964,119120.0,119090.0,0.3622]
[1752416448677,0.00014964,119120.0,119100.0,0.090609]
[1752416448914,0.00014964,119120.0,119100.0,0.08850993]
[1752416449266,0.08542993,119110.0,119070.0,0.3471312]
[1752416449367,0.00014964,119120.0,119110.0,0.17972]
[1752416449595,0.00014964,119120.0,119110.0,0.17988]
[1752416449821,0.00014964,119120.0,119110.0,0.18296]
[1752416450075,0.00014964,119120.0,119070.0,0.4002112]
[1752416450316,0.03004964,119120.0,119080.0,0.17988]
[1752416450565,0.00014964,119120.0,119090.0,0.00517925]
[1752416450802,0.00014964,119120.0,119100.0,0.08542993]
[1752416451044,0.00014964,119120.0,119110.0,0.18072]
[1752416451295,0.14838957,119120.0,119070.0,0.3502112]
[1752416451529,0.14838957,119120.0,119080.0,0.18084]
[1752416451763,0.14838957,119120.0,119090.0,0.18084]
[1752416451995,0.03004964,119120.0,119100.0,0.00209907]
[1752416452223,0.00014964,119120.0,119110.0,0.18072]
[1752416453171,0.00014964,119120.0,119110.0,0.18096]
[1752416453413,0.00014964,119120.0,119070.0,0.3502112]
[1752416453656,0.03305964,119120.0,119080.0,0.08542993]
[1752416453911,0.06365964,119120.0,119080.0,0.08542993]
[1752416454148,0.02994964,119120.0,119080.0,0.08850993]
[1752416454385,0.00014964,119120.0,119090.0,0.00308]
[1752416454616,0.07494085,119110.0,119100.0,0.36196]
[1752416454853,0.16348078,119110.0,119100.0,0.36204]
[1752416456260,0.4004,119100.0,119070.0,0.3471312]
[1752416456504,0.40351,119100.0,119080.0,0.18106]
[1752416456757,0.41805085,119100.0,119090.0,0.18084]
[1752416458085,0.02531564,119120.0,119090.0,0.18084]
[1752416458296,0.02834964,119120.0,119090.0,0.18084]
[1752416458515,0.36834964,119120.0,119090.0,0.18084]
[1752416458728,0.02334964,119120.0,119090.0,0.18084]
[1752416459183,0.36645964,119120.0,119090.0,0.18084]
[1752416459415,0.0301,119130.0,119090.0,0.26934993]
[1752416459632,0.08542993,119130.0,119090.0,0.26949957]
[1752416459844,0.42853993,119130.0,119090.0,0.26949957]
[1752416460977,0.45863993,119130.0,119100.0,0.1806]
[1752416461198,0.45863993,119130.0,119090.0,0.00014964]
[1752416461643,0.07032277,119120.0,119090.0,0.00014964]
[1752416461881,0.2140527,119120.0,119100.0,0.18028]
[1752416462128,0.14683993,119120.0,119090.0,0.00014964]
[1752416462364,0.07284085,119100.0,119090.0,0.00014964]
[1752416462596,0.07394085,119090.0,119080.0,0.0001]
[1752416462820,0.22658355,119090.0,119080.0,0.18054]
[1752416463056,0.16248078,119090.0,119080.0,0.18054]
[1752416463283,0.34,119090.0,119080.0,0.18054]
[1752416463510,0.0146904,119100.0,119080.0,0.18054]
[1752416463735,0.00014955,119100.0,119090.0,0.00517925]
[1752416463953,0.00014955,119100.0,119090.0,0.18072]
[1752416464422,0.10012033,119100.0,119090.0,0.18072]
[1752416464701,0.50263033,119100.0,119090.0,0.1808]
[1752416464932,0.35454085,119090.0,119080.0,0.0001]
[1752416465161,0.50250078,119090.0,119080.0,0.0001]
[1752416465393,0.50250078,119090.0,119080.0,0.18102]
[1752416465627,0.50250078,119090.0,119080.0,0.18114]
[1752416466097,0.50250078,119090.0,119070.0,0.3471312]
[1752416466098,0.07394085,119080.0,119070.0,0.3471312]
[1752416466318,0.50250078,119080.0,119070.0,0.3471312]
[1752416467213,0.50250078,119080.0,119070.0,0.5281712]
[1752416468315,0.90250078,119080.0,119070.0,0.5281712]
[1752416468583,0.48795993,119080.0,119070.0,0.5281712]
[1752416468819,0.48795993,119080.0,119070.0,0.3471312]
[1752416469037,0.50250078,119080.0,119070.0,0.5276912]
[1752416469262,0.50250078,119080.0,119070.0,0.3471312]
[1752416469263,0.56822188,119080.0,119070.0,0.3471312]
[1752416469492,0.50250078,119080.0,119070.0,0.5276512]
[1752416469934,0.50250078,119080.0,119070.0,0.3471312]
[1752416470369,0.50250078,119080.0,119070.0,0.5276512]
[1752416471678,0.50250078,119080.0,119070.0,0.1376261]
[1752416472138,0.50250078,119080.0,119010.0,0.0032]
[1752416472139,0.01454085,119030.0,119010.0,0.20116]
[1752416472404,0.09997078,119030.0,119020.0,0.18]
[1752416472648,0.10310078,119030.0,119010.0,0.20116]
[1752416472892,0.12515678,119030.0,119020.0,0.38136]
[1752416473139,0.15455678,119030.0,119010.0,0.20116]
[1752416473380,0.44310078,119020.0,119000.0,2.20116]
[1752416473637,0.04857085,119010.0,119000.0,2.1927749]
[1752416473878,0.13400078,119010.0,119000.0,2.3645898]
[1752416474136,0.13400078,119010.0,119000.0,2.15504194]
[1752416474137,0.50340078,119010.0,119000.0,2.15504194]
[1752416474377,0.50340078,119010.0,119000.0,2.32681684]
[1752416474854,0.47400078,119010.0,119000.0,2.28908388]
[1752416475107,0.47400078,119010.0,119000.0,2.28069244]
[1752416475339,0.49961567,119010.0,119000.0,2.25132237]
[1752416475570,0.55340078,119010.0,119000.0,2.06277093]
[1752416475800,0.55340078,119010.0,119000.0,2.24293093]
[1752416476040,0.55340078,119010.0,119000.0,2.06277093]
[1752416476288,0.62020078,119010.0,119000.0,2.24293093]
[1752416476514,0.60340078,119010.0,119000.0,2.06277093]
[1752416476737,0.60340078,119010.0,119000.0,2.22469612]
[1752416476950,0.60340078,119010.0,119000.0,2.19104602]
[1752416477195,0.60340078,119010.0,119000.0,1.58862916]
[1752416477196,0.56830761,119010.0,119000.0,1.58862916]
[1752416477437,0.35454085,118980.0,118960.0,0.20164]
[1752416477651,0.75767085,118970.0,118960.0,0.20164]
[1752416478087,0.78287285,118970.0,118960.0,0.20164]
[1752416478305,0.96830278,118970.0,118960.0,0.20164]
[1752416478536,0.96830278,118970.0,118960.0,0.3814]
[1752416478537,0.81830278,118970.0,118960.0,0.3814]
[1752416478760,0.90013306,118970.0,118960.0,0.18065897]
[1752416479207,0.45454085,118960.0,118950.0,0.0004]
[1752416479430,0.80454085,118950.0,118940.0,0.20178]
[1752416479647,0.84310078,118950.0,118940.0,0.20192884]
[1752416479866,0.44310078,118950.0,118940.0,0.20192884]
[1752416480345,0.79241086,118950.0,118940.0,0.20192884]
[1752416480558,0.74310078,118950.0,118940.0,0.20192884]
[1752416480772,0.74310078,118950.0,118940.0,0.38168884]
[1752416480773,0.44310078,118950.0,118940.0,0.38168884]
[1752416481230,0.42855993,118950.0,118940.0,0.38168884]
[1752416481497,0.08542993,118950.0,118940.0,0.44028884]
[1752416481716,0.08542993,118950.0,118940.0,0.44348884]
[1752416481939,0.025202,118970.0,118950.0,0.0586]
[1752416482162,0.08542993,118970.0,118950.0,0.00530172]
[1752416482386,0.08542993,118960.0,118940.0,0.20192884]
[1752416482608,0.08542993,118960.0,118950.0,0.1798]
[1752416482829,0.08542993,118960.0,118950.0,0.2403]
[1752416483277,0.025194,118980.0,118970.0,0.0605]
[1752416483508,0.45375393,118980.0,118970.0,0.38932]
[1752416483756,0.46829478,118980.0,118970.0,0.35952]
[1752416483974,0.01454085,118970.0,118950.0,0.0298]
[1752416484188,0.01454085,118970.0,118960.0,0.24014]
[1752416484420,0.08542993,118970.0,118960.0,0.0605]
[1752416484647,0.44310078,118970.0,118960.0,0.17972]
[1752416484873,0.35454085,118950.0,118940.0,0.20192884]
[1752416485111,0.43997078,118950.0,118940.0,0.44230884]
[1752416485344,0.42542993,118950.0,118940.0,0.44230884]
[1752416485566,0.025194,118980.0,118970.0,0.0298]
[1752416485783,0.11062393,118980.0,118970.0,0.24034]
[1752416486226,0.11375393,118980.0,118970.0,0.24034]
[1752416486451,0.41454085,118970.0,118960.0,0.0298]
[1752416486676,0.50310078,118970.0,118960.0,0.20948]
[1752416486895,0.08542993,118970.0,118960.0,0.24018]
[1752416487114,0.08542993,118970.0,118960.0,0.0605]
[1752416487336,0.08542993,118970.0,118960.0,0.24038]
[1752416487561,0.425194,118980.0,118960.0,0.18308]
[1752416487562,0.025194,118980.0,118960.0,0.18308]
[1752416487845,0.08542993,118980.0,118960.0,0.18308]
[1752416488281,0.08542993,118980.0,118970.0,0.0584]
[1752416488500,0.44310078,118980.0,118970.0,0.23407537]
[1752416488706,0.44310078,118980.0,118970.0,0.05419537]
[1752416488913,0.44310078,118980.0,118970.0,0.18008]
[1752416489359,0.42542993,118980.0,118970.0,0.20988]
[1752416489568,0.08542993,118980.0,118970.0,0.20988]
[1752416489992,0.10310078,118980.0,118950.0,0.0298]
[1752416490202,0.08542993,118970.0,118950.0,0.0298]
[1752416490431,0.08855993,118970.0,118950.0,0.0298]
[1752416490645,0.34,118960.0,118950.0,0.0298]
[1752416490849,0.08542993,118960.0,118950.0,0.20964]
[1752416491273,0.025197,118970.0,118960.0,0.0298]
[1752416491483,0.08542993,118970.0,118950.0,0.18304]
[1752416491729,0.08542993,118970.0,118960.0,0.20336]
[1752416491941,0.08542993,118970.0,118960.0,0.23304]
[1752416493194,0.08542993,118970.0,118960.0,0.23624]
[1752416493433,0.025194,118980.0,118970.0,0.0289]
[1752416493634,0.11062393,118980.0,118970.0,0.0289]
[1752416494681,0.11062393,118980.0,118970.0,0.20834]
[1752416494894,0.11062393,118980.0,118970.0,0.23644]
[1752416495330,0.08542993,118980.0,118970.0,0.23943]
[1752416495546,0.425192,119000.0,118990.0,0.057]
[1752416495759,0.52516278,119000.0,118990.0,0.23584]
[1752416495976,0.86821278,119000.0,118990.0,0.057]
[1752416496199,0.35454085,118990.0,118950.0,0.10771]
[1752416496417,0.42542993,118990.0,118980.0,0.0281]
[1752416496688,0.42542993,118990.0,118980.0,0.20686]
[1752416496940,0.00049835,118990.0,118980.0,0.20985]
[1752416498216,0.06721277,119030.0,118990.0,0.0282]
[1752416498432,0.08542993,119020.0,119010.0,0.0282]
[1752416498676,0.11061393,119030.0,119020.0,0.0282]
[1752416498901,0.06721277,119050.0,119010.0,0.18155]
[1752416499124,0.08542993,119040.0,119020.0,0.0282]
[1752416499364,0.08542993,119040.0,119030.0,0.2379]
[1752416499585,0.42542993,119040.0,119030.0,0.2379]
[1752416499803,0.08542993,119040.0,119030.0,0.2379]
[1752416500711,0.08542993,119040.0,119010.0,0.0595]
[1752416500712,0.12758624,119040.0,119010.0,0.0595]
[1752416500932,0.00305,119030.0,119010.0,0.0595]
[1752416501149,0.04215631,119040.0,119020.0,0.23738]
[1752416501370,0.45725681,119050.0,119030.0,0.0595]
[1752416501587,0.49587018,119050.0,119040.0,0.17784]
[1752416501824,0.58435011,119050.0,119040.0,0.17784]
[1752416502078,0.58435011,119050.0,119040.0,0.20604]
[1752416502079,0.20189622,119050.0,119040.0,0.20604]
[1752416502292,0.5477624,119050.0,119040.0,0.20604]
[1752416502516,0.55558398,119050.0,119040.0,0.23734]
[1752416502741,0.5477624,119050.0,119040.0,0.23734]
[1752416502969,0.54494622,119050.0,119040.0,0.0595]
[1752416503209,0.01454085,119040.0,119020.0,0.0595]
[1752416503416,0.01759085,119040.0,119030.0,0.0282]
[1752416503639,0.34305,119030.0,119010.0,0.0595]
[1752416503850,0.34305,119030.0,119020.0,0.1774]
[1752416504312,0.34,119030.0,119020.0,0.2369]
[1752416504550,0.42847993,119030.0,119020.0,0.23678]
[1752416504770,0.08542993,119030.0,119020.0,0.23678]
[1752416505880,0.00014947,119050.0,119020.0,0.18027]
[1752416506095,0.0855794,119050.0,119020.0,0.17728]
[1752416506319,0.00014947,119050.0,119030.0,0.00509031]
[1752416506543,0.00014947,119050.0,119040.0,0.18003]
[1752416506764,0.00014947,119050.0,119040.0,0.23953]
[1752416508356,0.00014947,119050.0,119040.0,0.23901]
[1752416509185,0.00014947,119050.0,119040.0,0.23588]
[1752416509392,0.00014947,119050.0,119040.0,0.23887]
[1752416511092,0.00014947,119050.0,119040.0,0.06259]
[1752416511308,0.00014947,119050.0,119040.0,0.0596]
[1752416511505,0.00014947,119050.0,119040.0,0.23536]
[1752416511906,0.00014947,119050.0,119040.0,0.23835]
[1752416513774,0.00014947,119050.0,119040.0,0.23492]
[1752416514382,0.0855794,119050.0,119040.0,0.23406169]
[1752416514760,0.00014947,119050.0,119040.0,0.23705169]
[1752416514968,0.00014947,119050.0,119040.0,0.32248162]
[1752416515430,0.05153349,119070.0,119040.0,0.26419993]
[1752416515636,0.05153349,119070.0,119060.0,0.0313]
[1752416515839,0.05153349,119070.0,119060.0,0.20702]
[1752416515968,0.05153349,119070.0,119060.0,0.2071]
[1752416516196,0.05153349,119070.0,119060.0,0.40834]
[1752416516816,0.05153349,119070.0,119060.0,0.41117]
[1752416517458,0.05153349,119070.0,119060.0,0.44237]
[1752416520938,0.05153349,119070.0,119060.0,0.44247]
[1752416521091,0.05153349,119070.0,119060.0,0.37143]
[1752416521295,0.05153349,119070.0,119060.0,0.54599]
[1752416521473,0.05153349,119070.0,119060.0,0.543]
[1752416521672,0.05153349,119070.0,119060.0,0.54599]
[1752416522109,0.05153349,119070.0,119060.0,0.63141993]
[1752416522347,0.05153349,119070.0,119060.0,0.37143]
[1752416522568,0.05153349,119070.0,119060.0,0.54292]
[1752416522778,0.05153349,119070.0,119060.0,0.36844]
[1752416523213,0.05153349,119070.0,119060.0,0.5428]
[1752416523642,0.05153349,119070.0,119060.0,0.54579]
[1752416525126,0.05153349,119070.0,119060.0,0.63121993]
[1752416525580,0.05153349,119070.0,119060.0,0.92791993]
[1752416525802,0.00305,119110.0,119060.0,0.92807993]
[1752416526017,0.00305,119110.0,119070.0,0.00315]
[1752416526265,0.00305,119110.0,119100.0,0.0299]
[1752416526489,0.06771195,119120.0,119100.0,0.20406]
[1752416526709,0.00049918,119120.0,119110.0,0.0645989]
[1752416526927,0.01946425,119130.0,119110.0,0.17432]
[1752416527199,0.08542993,119120.0,119110.0,0.20422]
[1752416527419,0.34014966,119130.0,119110.0,0.43802]
[1752416527639,0.00014966,119130.0,119120.0,0.0303]
[1752416527858,0.00014966,119130.0,119120.0,0.0621]
[1752416528068,6.769e-05,119130.0,119120.0,0.0621]
[1752416528744,6.769e-05,119130.0,119120.0,0.0121]
[1752416528964,6.769e-05,119130.0,119120.0,0.01419872]
[1752416529179,6.769e-05,119130.0,119120.0,0.18642]
[1752416529408,6.769e-05,119130.0,119120.0,0.18957]
[1752416530773,6.769e-05,119130.0,119120.0,0.10067993]
[1752416531224,6.769e-05,119130.0,119120.0,0.27487993]
[1752416531499,6.769e-05,119130.0,119110.0,0.00315]
[1752416531718,6.769e-05,119130.0,119120.0,0.37544]
[1752416531943,6.769e-05,119130.0,119120.0,0.20112]
[1752416532164,0.00311769,119130.0,119120.0,0.20112]